fUSD/lending_fUSD_20240409
["ID","MTS","AMOUNT","RATE_DAILY","PERIOD"]
[321984879,1712673064313,-500.0,0.00020655,2]
[321984880,1712673064322,-626.82,0.00020655,2]
[321984881,1712673064331,-500.0,0.00020655,2]
[321984882,1712673064340,-500.0,0.00020655,2]
[321984883,1712673064350,-1102.78,0.00020655,2]
[321984884,1712673064359,-1694.35,0.00020655,2]
[321984885,1712673064369,-715.55,0.00020655,2]
[321984886,1712673064379,-1183.36,0.00020655,2]
[321984887,1712673064389,-500.0,0.00020655,2]
[321984888,1712673064399,-613.37,0.00020655,2]
[321984889,1712673064408,-1495.38,0.00020655,2]
[321984890,1712673064418,-500.0,0.00020655,2]
[321984891,1712673064428,-1256.72,0.00020655,2]
[321984892,1712673064438,-500.0,0.00020655,2]
[321984893,1712673064450,-892.81,0.00020655,2]
[321984894,1712673064459,-500.0,0.00020655,2]
[321984895,1712673064468,-659.39,0.00020655,2]
[321984896,1712673064477,-622.18,0.00020655,2]
[321984897,1712673064489,-500.0,0.00020655,2]
[321984898,1712673064499,-500.0,0.00020655,2]
[321984899,1712673064509,-500.0,0.00020656,2]
[321984900,1712673064518,-500.0,0.00020656,2]
[321984901,1712673064527,-500.0,0.00020656,2]
[321984902,1712673064536,-500.0,0.00020656,2]
[321984903,1712673064545,-627.03,0.00020656,2]
[321984904,1712673064555,-500.0,0.00020656,2]
[321984905,1712673064564,-500.0,0.00020656,2]
[321984906,1712673064577,-638.88,0.00020656,2]
[321984907,1712673064589,-932.16,0.00020656,2]
[321984908,1712673064598,-500.0,0.00020656,2]
[321984909,1712673064607,-500.0,0.00020656,2]
[321984910,1712673064616,-1616.8319007,0.00020686,2]
[321984911,1712673064628,-4191.1,0.00020731,2]
[321984912,1712673064638,-155.0,0.00020742,2]
[321984913,1712673064648,-3056.72436352,0.00020743,2]
[321984914,1712673064659,-500.0,0.00020743,2]
[321984915,1712673064669,-500.0,0.00020743,2]
[321984916,1712673064679,-500.0,0.00020743,2]
[321984917,1712673064688,-500.0,0.00020743,2]
[321984918,1712673064705,-500.0,0.00020743,2]
[321984919,1712673064715,-500.0,0.00020743,2]
[321984920,1712673064725,-500.0,0.00020743,2]
[321984921,1712673064736,-564.41,0.00020743,2]
[321984922,1712673064748,-500.0,0.00020743,2]
[321984923,1712673064758,-500.0,0.00020743,2]
[321984924,1712673064768,-500.0,0.00020743,2]
[321984925,1712673064779,-500.0,0.00020743,2]
[321984926,1712673064788,-528.03,0.00020743,2]
[321984927,1712673064800,-500.0,0.00020743,2]
[321984928,1712673064810,-500.0,0.00020743,2]
[321984929,1712673064821,-500.0,0.00020743,2]
[321984930,1712673064831,-500.0,0.00020743,2]
[321984931,1712673064841,-500.0,0.00020743,2]
[321984932,1712673064851,-500.0,0.00020743,2]
[321984933,1712673064860,-500.0,0.00020743,2]
[321984934,1712673064870,-500.0,0.00020743,2]
[321984935,1712673064880,-541.5992731,0.00020743,2]
[321984936,1712673064889,-500.0,0.00020743,2]
[321984937,1712673064899,-500.0,0.00020743,2]
[321984938,1712673064909,-500.0,0.00020743,2]
[321984939,1712673064919,-500.0,0.00020743,2]
[321984940,1712673064929,-500.0,0.00020743,2]
[321984941,1712673064943,-500.0,0.00020743,2]
[321984942,1712673064955,-500.0,0.00020743,2]
[321984943,1712673064965,-500.0,0.00020743,2]
[321984944,1712673064976,-500.0,0.00020743,2]
[321984945,1712673064987,-500.0,0.00020743,2]
[321984946,1712673065011,-500.0,0.00020743,2]
[321984947,1712673065020,-500.0,0.00020743,2]
[321984948,1712673065030,-500.0,0.00020743,2]
[321984949,1712673065040,-694.42,0.00020743,2]
[321984950,1712673065050,-500.0,0.00020743,2]
[321984951,1712673065061,-500.0,0.00020743,2]
[321984952,1712673065071,-500.0,0.00020743,2]
[321984953,1712673065147,-500.0,0.00020743,2]
[321984954,1712673065158,-500.0,0.00020743,2]
[321984955,1712673065168,-500.0,0.00020743,2]
[321984956,1712673065178,-500.0,0.00020743,2]
[321984957,1712673065187,-500.0,0.00020743,2]
[321984958,1712673065202,-500.0,0.00020743,2]
[321984959,1712673065211,-500.0,0.00020743,2]
[321984960,1712673065221,-500.0,0.00020743,2]
[321984961,1712673065230,-500.0,0.00020743,2]
[321984962,1712673065240,-500.0,0.00020743,2]
[321984963,1712673065250,-500.0,0.00020743,2]
[321984964,1712673065259,-635.68,0.00020743,2]
[321984965,1712673065268,-500.0,0.00020743,2]
[321984966,1712673065278,-1123.94,0.00020743,2]
[321984967,1712673065288,-500.0,0.00020743,2]
[321984968,1712673065297,-631.8,0.00020743,2]
[321984969,1712673065306,-503.37,0.00020743,2]
[321984970,1712673065316,-671.09,0.00020743,2]
[321984971,1712673065326,-500.0,0.00020743,2]
[321984972,1712673065336,-823.54,0.00020743,2]
[321984973,1712673065345,-500.0,0.00020743,2]
[321984974,1712673065355,-500.0,0.00020743,2]
[321984975,1712673065364,-500.0,0.00020743,2]
[321984976,1712673065373,-541.03,0.00020743,2]
[321984977,1712673065384,-500.0,0.00020743,2]
[321984978,1712673065394,-500.0,0.00020743,2]
[321984979,1712673065403,-633.62,0.00020743,2]
[321984980,1712673065412,-596.75,0.00020743,2]
[321984981,1712673065422,-668.22,0.00020743,2]
[321984982,1712673065431,-500.0,0.00020743,2]
[321984983,1712673065443,-843.11,0.00020743,2]
[321984984,1712673065453,-933.78,0.00020743,2]
[321984985,1712673065464,-500.0,0.00020743,2]
[321984986,1712673065474,-500.0,0.00020743,2]
[321984987,1712673065484,-500.0,0.00020743,2]
[321984988,1712673065494,-1111.73,0.00020743,2]
[321984989,1712673065504,-500.0,0.00020743,2]
[321984990,1712673065514,-852.6,0.00020743,2]
[321984991,1712673065525,-500.0,0.00020743,2]
[321984992,1712673065535,-663.39,0.00020743,2]
[321984993,1712673065545,-500.0,0.00020743,2]
[321984994,1712673065555,-1221.45,0.00020743,2]
[321984995,1712673065566,-500.0,0.00020743,2]
[321984996,1712673065578,-627.38,0.00020743,2]
[321984997,1712673065590,-500.0,0.00020743,2]
[321984998,1712673065601,-657.38,0.00020743,2]
[321984999,1712673065612,-1292.14,0.00020743,2]
[321985000,1712673065624,-536.62,0.00020743,2]
[321985001,1712673065636,-832.11,0.00020743,2]
[321985002,1712673065646,-500.0,0.00020743,2]
[321985003,1712673065656,-500.0,0.00020743,2]
[321985004,1712673065668,-500.0,0.00020743,2]
[321985005,1712673065678,-409.53232199,0.00020743,2]
[321985006,1712673065688,-463.07496596,0.00020743,2]
[321985007,1712673065702,-923.79,0.00020743,2]
[321985008,1712673065713,-697.54,0.00020743,2]
[321985009,1712673065723,-897.1,0.00020743,2]
[321985010,1712673065734,-500.0,0.00020743,2]
[321985011,1712673065746,-500.0,0.00020743,2]
[321985012,1712673065756,-500.0,0.00020743,2]
[321985013,1712673065766,-1078.41,0.00020743,2]
[321985014,1712673065776,-551.12,0.00020743,2]
[321985015,1712673065786,-500.0,0.00020743,2]
[321985016,1712673065797,-600.78,0.00020743,2]
[321985017,1712673065806,-603.54,0.00020743,2]
[321985018,1712673065816,-843.29,0.00020743,2]
[321985019,1712673065825,-791.5,0.00020743,2]
[321985020,1712673065835,-500.0,0.00020743,2]
[321985021,1712673065844,-2333.52,0.00020743,2]
[321985022,1712673065855,-1043.44,0.00020743,2]
[321985023,1712673065864,-444.4290183,0.00020743,2]
[321985024,1712673065873,-500.0,0.00020743,2]
[321985025,1712673065883,-500.0,0.00020743,2]
[321985026,1712673065893,-747.53,0.00020743,2]
[321985027,1712673065902,-603.09,0.00020743,2]
[321985028,1712673065912,-500.0,0.00020743,2]
[321985029,1712673065922,-500.0,0.00020743,2]
[321985030,1712673065932,-500.0,0.00020743,2]
[321985031,1712673065946,-500.0,0.00020743,2]
[321985032,1712673065956,-963.48,0.00020743,2]
[321985033,1712673065967,-790.33,0.00020743,2]
[321985034,1712673065979,-500.0,0.00020743,2]
[321985035,1712673065989,-500.0,0.00020743,2]
[321985036,1712673065998,-500.0,0.00020743,2]
[321985037,1712673066008,-1616.37,0.00020743,2]
[321985038,1712673066018,-1471.69,0.00020743,2]
[321985039,1712673066028,-500.0,0.00020743,2]
[321985040,1712673066038,-547.97,0.00020743,2]
[321985041,1712673066048,-500.0,0.00020743,2]
[321985042,1712673066057,-635.6,0.00020743,2]
[321985043,1712673066067,-500.0,0.00020743,2]
[321985044,1712673066077,-500.0,0.00020743,2]
[321985045,1712673066087,-500.0,0.00020743,2]
[321985046,1712673066097,-577.34,0.00020743,2]
[321985047,1712673066107,-1427.59,0.00020743,2]
[321985048,1712673066117,-500.0,0.00020743,2]
[321985049,1712673066127,-500.0,0.00020743,2]
[321985050,1712673066137,-500.0,0.00020743,2]
[321985051,1712673066147,-500.0,0.00020743,2]
[321985052,1712673066157,-817.26,0.00020743,2]
[321985053,1712673066167,-500.0,0.00020743,2]
[321985054,1712673066177,-957.96,0.00020743,2]
[321985055,1712673066186,-2342.26,0.00020743,2]
[321985056,1712673066199,-500.0,0.00020743,2]
[321985057,1712673066209,-500.0,0.00020743,2]
[321985058,1712673066219,-469.18,0.00020743,2]
[321985059,1712673066229,-500.0,0.00020743,2]
[321985060,1712673066239,-1704.1,0.00020743,2]
[321985061,1712673066249,-500.0,0.00020743,2]
[321985062,1712673066259,-2324.62,0.00020743,2]
[321985063,1712673066269,-1290.55,0.00020743,2]
[321985064,1712673066278,-500.0,0.00020743,2]
[321985065,1712673066288,-500.0,0.00020743,2]
[321985066,1712673066298,-545.93,0.00020743,2]
[321985067,1712673066308,-848.38,0.00020743,2]
[321985068,1712673066318,-2247.07,0.00020743,2]
[321985069,1712673066328,-500.0,0.00020743,2]
[321985070,1712673066339,-1229.91,0.00020743,2]
[321985071,1712673066350,-744.27,0.00020743,2]
[321985072,1712673066361,-660.82,0.00020743,2]
[321985073,1712673066372,-2561.61,0.00020743,2]
[321985074,1712673066383,-984.35,0.00020743,2]
[321985075,1712673066394,-1345.92,0.00020743,2]
[321985076,1712673066404,-3955.76,0.00020743,2]
[321985077,1712673066415,-990.99,0.00020743,2]
[321985078,1712673066424,-500.0,0.00020743,2]
[321985079,1712673066434,-500.0,0.00020743,2]
[321985080,1712673066449,-1438.9,0.00020743,2]
[321985081,1712673066459,-768.81,0.00020743,2]
[321985082,1712673066470,-2389.13,0.00020743,2]
[321985083,1712673066480,-7729.52,0.00020743,2]
[321985084,1712673066492,-500.0,0.00020743,2]
[321985085,1712673066502,-500.0,0.00020743,2]
[321985086,1712673066513,-511.93,0.00020743,2]
[321985087,1712673066523,-1018.62,0.00020743,2]
[321985088,1712673066534,-4481.77,0.00020743,2]
[321985089,1712673066545,-1870.76,0.00020743,2]
[321985090,1712673066554,-500.0,0.00020743,2]
[321985091,1712673066563,-1583.59,0.00020743,2]
[321985092,1712673066574,-500.0,0.00020743,2]
[321985093,1712673066589,-11328.73,0.00020743,2]
[321985094,1712673066600,-6539.18,0.00020743,2]
[321985095,1712673066610,-500.0,0.00020743,2]
[321985096,1712673066624,-1713.02,0.00020743,2]
[321985097,1712673066633,-7732.93,0.00020743,2]
[321985098,1712673066644,-1559.45,0.00020743,2]
[321985099,1712673066655,-506.61,0.00020743,2]
[321985100,1712673066672,-10439.82,0.00020743,2]
[321985101,1712673066682,-4574.26,0.00020743,2]
[321985102,1712673066697,-4021.44,0.00020743,2]
[321985103,1712673066710,-2156.27,0.00020743,2]
[321985104,1712673066721,-1482.86,0.00020743,2]
[321985105,1712673066731,-4514.37,0.00020743,2]
[321985106,1712673066741,-7547.68,0.00020743,2]
[321985107,1712673066750,-5257.69,0.00020743,2]
[321985108,1712673066761,-1782.36,0.00020743,2]
[321985109,1712673066771,-500.0,0.00020743,2]
[321985110,1712673066781,-500.0,0.00020743,2]
[321985111,1712673066791,-2888.04,0.00020743,2]
[321985112,1712673066801,-500.0,0.00020743,2]
[321985113,1712673066811,-1138.87,0.00020743,2]
[321985114,1712673066821,-16169.01,0.00020743,2]
[321985115,1712673066831,-2849.22,0.00020743,2]
[321985116,1712673066843,-1282.9,0.00020743,2]
[321985117,1712673066852,-12358.6,0.00020743,2]
[321985118,1712673066863,-2014.2,0.00020743,2]
[321985119,1712673066872,-500.0,0.00020743,2]
[321985120,1712673066882,-540.87,0.00020743,2]
[321985121,1712673066891,-647.15,0.00020743,2]
[321985122,1712673066900,-500.0,0.00020743,2]
[321985123,1712673066909,-2974.08,0.00020743,2]
[321985124,1712673066919,-642.16,0.00020743,2]
[321985125,1712673066929,-37418.55,0.00020743,2]
[321985126,1712673066939,-500.0,0.00020743,2]
[321985127,1712673066957,-1291.87,0.00020743,2]
[321985128,1712673066969,-4841.64,0.00020743,2]
[321985129,1712673066979,-2943.33,0.00020743,2]
[321985130,1712673066988,-1250.53,0.00020743,2]
[321985131,1712673066998,-975.68,0.00020743,2]
[321985132,1712673067008,-608.75,0.00020743,2]
[321985133,1712673067017,-1560.97,0.00020743,2]
[321985134,1712673067027,-500.0,0.00020743,2]
[321985135,1712673067037,-594.41175081,0.00020743,2]
[321985136,1712673067046,-7440.56,0.00020743,2]
[321985137,1712673067056,-1507.52,0.00020743,2]
[321985138,1712673067066,-595.02,0.00020743,2]
[321985139,1712673067076,-500.0,0.00020743,2]
[321985140,1712673067086,-2112.88,0.00020743,2]
[321985141,1712673067096,-3351.5,0.00020743,2]
[321985142,1712673067105,-547.81,0.00020743,2]
[321985143,1712673067115,-500.0,0.00020743,2]
[321985144,1712673067126,-4404.54,0.00020743,2]
[321985145,1712673067136,-500.0,0.00020743,2]
[321985146,1712673067146,-582.7,0.00020743,2]
[321985147,1712673067155,-500.0,0.00020743,2]
[321985148,1712673067166,-1392.75,0.00020743,2]
[321985149,1712673067176,-1587.93,0.00020743,2]
[321985150,1712673067186,-6682.62,0.00020743,2]
[321985151,1712673067205,-500.0,0.00020743,2]
[321985152,1712673067216,-1075.26,0.00020743,2]
[321985153,1712673067227,-3322.41,0.00020743,2]
[321985154,1712673067237,-1041.42,0.00020743,2]
[321985155,1712673067248,-500.0,0.00020743,2]
[321985156,1712673067259,-2054.92,0.00020743,2]
[321985157,1712673067269,-887.34,0.00020744,2]
[321985158,1712673067279,-500.0,0.00020744,2]
[321985159,1712673067289,-500.0,0.00020744,2]
[321985160,1712673067299,-877.52,0.00020744,2]
[321985161,1712673067308,-589.79,0.00020744,2]
[321985162,1712673067318,-500.0,0.00020744,2]
[321985163,1712673067327,-970.17,0.00020744,2]
[321985164,1712673067336,-285.51719747,0.00020744,2]
[321985165,1712673067346,-642.9,0.00020744,2]
[321985166,1712673067356,-500.0,0.00020744,2]
[321985167,1712673067366,-609.18139353,0.00020744,2]
[321985168,1712673067376,-500.0,0.00020744,2]
[321985169,1712673067385,-693.74,0.00020744,2]
[321985170,1712673067394,-500.0,0.00020744,2]
[321985171,1712673067403,-500.0,0.00020744,2]
[321985172,1712673067412,-1000.78,0.00020744,2]
[321985173,1712673067422,-738.19,0.00020744,2]
[321985174,1712673067432,-500.0,0.00020744,2]
[321985175,1712673067441,-926.32,0.00020744,2]
[321985176,1712673067454,-1221.81,0.00020744,2]
[321985177,1712673067463,-948.87,0.00020744,2]
[321985178,1712673067473,-1565.19,0.00020744,2]
[321985179,1712673067483,-1044.52,0.00020744,2]
[321985180,1712673067493,-500.0,0.00020744,2]
[321985181,1712673067503,-529.42,0.00020744,2]
[321985182,1712673067513,-1184.17,0.00020744,2]
[321985183,1712673067522,-500.0,0.00020744,2]
[321985184,1712673067532,-500.0,0.00020744,2]
[321985185,1712673067543,-856.68,0.00020744,2]
[321985186,1712673067553,-888.7,0.00020744,2]
[321985187,1712673067563,-1079.72,0.00020744,2]
[321985188,1712673067574,-736.06,0.00020744,2]
[321985189,1712673067588,-1842.93,0.00020744,2]
[321985190,1712673067597,-852.25,0.00020744,2]
[321985191,1712673067606,-848.52,0.00020744,2]
[321985192,1712673067616,-523.88,0.00020744,2]
[321985193,1712673067628,-500.0,0.00020744,2]
[321985194,1712673067638,-820.14,0.00020744,2]
[321985195,1712673067650,-1248.3,0.00020744,2]
[321985196,1712673067660,-284.8890271,0.00020744,2]
[321985197,1712673067670,-792.88,0.00020744,2]
[321985198,1712673067680,-766.08,0.00020744,2]
[321985199,1712673067689,-805.39,0.00020744,2]
[321985200,1712673067702,-1311.8,0.00020744,2]
[321985201,1712673067712,-1313.68,0.00020744,2]
[321985202,1712673067722,-500.0,0.00020744,2]
[321985203,1712673067732,-871.9,0.00020744,2]
[321985204,1712673067742,-826.01,0.00020744,2]
[321985205,1712673067751,-2742.0,0.00020744,2]
[321985206,1712673067760,-500.0,0.00020744,2]
[321985207,1712673067770,-626.09,0.00020744,2]
[321985208,1712673067780,-2697.91,0.00020744,2]
[321985209,1712673067789,-1687.99,0.00020744,2]
[321985210,1712673067798,-500.0,0.00020744,2]
[321985211,1712673067807,-553.48,0.00020744,2]
[321985212,1712673067816,-500.0,0.00020744,2]
[321985213,1712673067826,-3926.99,0.00020744,2]
[321985214,1712673067835,-500.0,0.00020744,2]
[321985215,1712673067846,-1500.84,0.00020744,2]
[321985216,1712673067857,-3651.81,0.00020744,2]
[321985217,1712673067867,-1900.17,0.00020744,2]
[321985218,1712673067879,-630.13,0.00020744,2]
[321985219,1712673067890,-1932.83,0.00020744,2]
[321985220,1712673067902,-603.43,0.00020744,2]
[321985221,1712673067912,-1264.43,0.00020744,2]
[321985222,1712673067924,-1336.89,0.00020744,2]
[321985223,1712673067934,-934.19,0.00020744,2]
[321985224,1712673067953,-2062.8,0.00020744,2]
[321985225,1712673067965,-753.81,0.00020744,2]
[321985226,1712673067975,-1354.19,0.00020744,2]
[321985227,1712673067986,-673.6,0.00020744,2]
[321985228,1712673067998,-2423.23,0.00020744,2]
[321985229,1712673068009,-1181.24,0.00020744,2]
[321985230,1712673068019,-595.38,0.00020744,2]
[321985231,1712673068030,-2644.37,0.00020744,2]
[321985232,1712673068040,-500.0,0.00020744,2]
[321985233,1712673068051,-993.27,0.00020744,2]
[321985234,1712673068061,-2432.9,0.00020744,2]
[321985235,1712673068071,-552.64,0.00020744,2]
[321985236,1712673068081,-2628.34,0.00020744,2]
[321985237,1712673068091,-1156.89,0.00020744,2]
[321985238,1712673068100,-500.0,0.00020744,2]
[321985239,1712673068110,-4227.79,0.00020744,2]
[321985240,1712673068120,-1328.43,0.00020744,2]
[321985241,1712673068130,-7242.96,0.00020744,2]
[321985242,1712673068139,-152.36796256,0.0002078,2]
[321985243,1712673068150,-214.0,0.0002081,2]
[321985244,1712673068160,-354.0,0.0002081,2]
[321985245,1712673068170,-5045.3383894,0.00020817,2]
[321985246,1712673068180,-7968.19,0.00020821,2]
[321985247,1712673068190,-2807.77,0.00020821,2]
[321985248,1712673068210,-2195.46,0.00020821,2]
[321985249,1712673068220,-1791.93,0.00020821,2]
[321985250,1712673068229,-2568.91,0.00020821,2]
[321985251,1712673068239,-800.0,0.00020822,2]
[321985252,1712673068249,-10004.267422,0.00020852,2]
[321985253,1712673068259,-155.0,0.00020854,2]
[321985254,1712673068269,-303.95640203,0.00020854,2]
[321985255,1712673068279,-260.08259237,0.00020854,2]
[321985256,1712673068289,-164.01340579,0.00020854,2]
[321985257,1712673068299,-155.0,0.00020854,2]
[321985258,1712673068310,-170.78473783,0.00020854,2]
[321985259,1712673068320,-9872.60545892,0.00020854,2]
[321985260,1712673068330,-686.8681172,0.00020854,2]
[321985261,1712673068339,-155.0,0.00020854,2]
[321985262,1712673068350,-156.66634096,0.00020854,2]
[321985263,1712673068361,-857.85739397,0.00020854,2]
[321985264,1712673068371,-500.0,0.00020854,2]
[321985265,1712673068380,-4311.68165139,0.00020854,2]
[321985266,1712673068390,-155.49408914,0.00020854,2]
[321985267,1712673068400,-446.98536618,0.00020854,2]
[321985268,1712673068409,-570.23565976,0.00020855,2]
[321985269,1712673068418,-1012.63,0.00020856,2]
[321985270,1712673068428,-500.0,0.00020856,2]
[321985271,1712673068437,-500.0,0.00020856,2]
[321985272,1712673068453,-916.01,0.00020856,2]
[321985273,1712673068463,-880.84,0.00020856,2]
[321985274,1712673068473,-517.72,0.00020856,2]
[321985275,1712673068482,-518.17,0.00020856,2]
[321985276,1712673068493,-916.32,0.00020856,2]
[321985277,1712673068503,-853.5,0.00020856,2]
[321985278,1712673068512,-532.98,0.00020856,2]
[321985279,1712673068523,-500.0,0.00020856,2]
[321985280,1712673068534,-774.75,0.00020856,2]
[321985281,1712673068545,-1088.74,0.00020856,2]
[321985282,1712673068555,-871.83,0.00020856,2]
[321985283,1712673068565,-1328.14,0.00020856,2]
[321985284,1712673068581,-163.93275,0.00020856,2]
[321985285,1712673068590,-5800.0,0.00020866,2]
[321985286,1712673068600,-5800.0,0.00020875,2]
[321985287,1712673068610,-3178.56093221,0.00020883,2]
[321985288,1712673068620,-5800.0,0.00020883,2]
[321985289,1712673068632,-5800.0,0.00020892,2]
[321985290,1712673068642,-5800.0,0.00020892,2]
[321985291,1712673068651,-10802.28252931,0.00020895,2]
[321985292,1712673068662,-4654.49201839,0.000209,2]
[321985293,1712673068672,-5800.0,0.000209,2]
[321985294,1712673068681,-5800.0,0.000209,2]
[321985295,1712673068690,-415.51311703,0.000209,2]
[321985296,1712673068709,-415.51311703,0.000209,2]
[321985297,1712673068719,-415.51311703,0.000209,2]
[321985298,1712673068733,-415.51311703,0.000209,2]
[321985299,1712673068744,-415.51311703,0.000209,2]
[321985300,1712673068753,-415.51311703,0.000209,2]
[321985301,1712673068762,-415.51311703,0.000209,2]
[321985302,1712673068772,-3041.99967822,0.000209,2]
[321985303,1712673068781,-1922.36,0.00020908,2]
[321985304,1712673068791,-1576.6,0.00020916,2]
[321985305,1712673068801,-2700.17,0.00020916,2]
[321985306,1712673068811,-2425.12,0.00020916,2]
[321985307,1712673068820,-1918.07,0.00020916,2]
[321985308,1712673068830,-794.51,0.00020916,2]
[321985309,1712673068839,-1947.33,0.00020916,2]
[321985310,1712673068849,-3051.36,0.00020916,2]
[321985311,1712673068859,-6007.64,0.00020916,2]
[321985312,1712673068868,-2264.34,0.00020916,2]
[321985313,1712673068879,-3048.79,0.00020916,2]
[321985314,1712673068888,-15934.7,0.00020916,2]
[321985315,1712673068898,-1471.95,0.00020916,2]
[321985316,1712673068907,-3339.2,0.00020916,2]
[321985317,1712673068917,-1679.13,0.00020916,2]
[321985318,1712673068926,-4614.19,0.00020916,2]
[321985319,1712673068935,-2229.03,0.00020916,2]
[321985320,1712673068949,-4421.25,0.00020916,2]
[321985321,1712673068959,-3729.88,0.00020916,2]
[321985322,1712673068969,-1994.58,0.00020916,2]
[321985323,1712673068978,-500.0,0.00020916,2]
[321985324,1712673068987,-500.0,0.00020916,2]
[321985325,1712673068997,-1941.65,0.00020916,2]
[321985326,1712673069006,-1858.23,0.00020916,2]
[321985327,1712673069015,-500.0,0.00020916,2]
[321985328,1712673069025,-255.83888732,0.00020916,2]
[321985329,1712673069034,-500.0,0.00020916,2]
[321985330,1712673069043,-500.0,0.00020916,2]
[321985331,1712673069053,-1577.22,0.00020916,2]
[321985332,1712673069062,-5017.78,0.00020917,2]
[321985333,1712673069072,-500.0,0.00020917,2]
[321985334,1712673069081,-1684.11,0.00020917,2]
[321985335,1712673069091,-798.07,0.00020917,2]
[321985336,1712673069101,-1293.13,0.00020917,2]
[321985337,1712673069110,-43443.91,0.00020917,2]
[321985338,1712673069120,-1249.49,0.00020917,2]
[321985339,1712673069129,-3678.23,0.00020917,2]
[321985340,1712673069138,-2164.97,0.00020917,2]
[321985341,1712673069147,-2609.47,0.00020917,2]
[321985342,1712673069157,-2043.36,0.00020917,2]
[321985343,1712673069166,-1084.68,0.00020917,2]
[321985344,1712673069175,-4379.96,0.00020917,2]
[321985345,1712673069184,-2396.01,0.00020917,2]
[321985346,1712673069197,-3950.62,0.00020917,2]
[321985347,1712673069206,-544.56,0.00020917,2]
[321985348,1712673069216,-2732.07,0.00020917,2]
[321985349,1712673069225,-812.02,0.00020917,2]
[321985350,1712673069235,-13075.79,0.00020917,2]
[321985351,1712673069244,-5025.59,0.00020917,2]
[321985352,1712673069253,-5881.29,0.00020917,2]
[321985353,1712673069262,-3356.15,0.00020917,2]
[321985354,1712673069272,-1175.72,0.00020917,2]
[321985355,1712673069281,-2071.18,0.00020917,2]
[321985356,1712673069290,-2057.16,0.00020917,2]
[321985357,1712673069300,-2715.79,0.00020917,2]
[321985358,1712673069310,-325.84537089,0.00020917,2]
[321985359,1712673069319,-5613.49,0.00020917,2]
[321985360,1712673069328,-2200.96,0.00020917,2]
[321985361,1712673069338,-98081.02909115,0.00020924,2]
[321985362,1712673069347,-591.21,0.00020929,2]
[321985363,1712673069357,-746.63,0.00020929,2]
[321985364,1712673069367,-500.0,0.00020929,2]
[321985365,1712673069376,-900.81,0.00020929,2]
[321985366,1712673069385,-625.72,0.00020929,2]
[321985367,1712673069395,-500.0,0.00020929,2]
[321985368,1712673069404,-551.94,0.00020929,2]
[321985369,1712673069414,-500.0,0.00020929,2]
[321985370,1712673069423,-500.0,0.00020929,2]
[321985371,1712673069433,-500.0,0.00020929,2]
[321985372,1712673069442,-500.0,0.00020929,2]
[321985373,1712673069457,-500.0,0.00020929,2]
[321985374,1712673069467,-500.0,0.00020929,2]
[321985375,1712673069476,-500.0,0.00020929,2]
[321985376,1712673069486,-500.0,0.00020929,2]
[321985377,1712673069620,-500.0,0.00020929,2]
[321985378,1712673069632,-500.0,0.00020929,2]